lending/lending_fUSD_20251106
["ID","MTS","AMOUNT","RATE_DAILY","PERIOD"]
[393295215,1762428028466,500.0,0.00038688,120]
[393295216,1762428028543,500.0,0.00038688,120]
[393295217,1762428028615,425.72050043,0.00038688,120]
[393295218,1762428028688,500.0,0.00038688,120]
[393295219,1762428028775,500.0,0.00038688,120]
[393295220,1762428028845,500.0,0.00038688,120]
[393295221,1762428028917,201.20232256,0.00038688,120]
[393295222,1762428028989,500.0,0.00038688,120]
[393295223,1762428029062,500.0,0.00038688,120]
[393295224,1762428029139,500.0,0.00038688,120]
[393295225,1762428029208,500.0,0.00038688,120]
[393295226,1762428029298,500.0,0.00038688,120]
[393295227,1762428029374,500.0,0.00038688,120]
[393295228,1762428029450,500.0,0.00038688,120]
[393295229,1762428029536,500.0,0.00038688,120]
[393295230,1762428029607,500.0,0.00038688,120]
[393295231,1762428029676,500.0,0.00038688,120]
[393295232,1762428029752,500.0,0.00038688,120]
[393295233,1762428029819,500.0,0.00038688,120]
[393295234,1762428029890,500.0,0.00038688,120]
[393295235,1762428029982,500.0,0.00038688,120]
[393295236,1762428030055,500.0,0.00038688,120]
[393295237,1762428030131,500.0,0.00038688,120]
[393295238,1762428030208,424.53416422,0.00038688,120]
[393295239,1762428030293,500.0,0.00038688,120]
[393295240,1762428030366,500.0,0.00038688,120]
[393295241,1762428030442,500.0,0.00038688,120]
[393295242,1762428030473,1200.0,0.000172,6]
[393295243,1762428030555,582.00652257,0.00038688,120]
[393295244,1762428030631,500.0,0.00038688,120]
[393295245,1762428030706,500.0,0.00038688,120]
[393295246,1762428030780,500.0,0.00038688,120]
[393295247,1762428031062,150.97068345,0.00038688,120]
[393295248,1762428031134,500.0,0.00038688,120]
[393295249,1762428031215,500.0,0.00038688,120]
[393295250,1762428031296,500.0,0.00038688,120]
[393295251,1762428031374,500.0,0.00038688,120]
[393295252,1762428031448,500.0,0.00038688,120]
[393295253,1762428031530,500.0,0.00038688,120]
[393295254,1762428031605,500.0,0.00038688,120]
[393295255,1762428031683,500.0,0.00038688,120]
[393295256,1762428031753,500.0,0.00038688,120]
[393295257,1762428031824,379.46131424,0.00038688,120]
[393295258,1762428031927,500.0,0.00038688,120]
[393295259,1762428032002,500.0,0.00038688,120]
[393295260,1762428032124,500.0,0.00038688,120]
[393295261,1762428032347,543.68521699,0.00038688,120]
[393295262,1762428032422,500.0,0.00038688,120]
[393295263,1762428032454,1600.0,0.000173,6]
[393295264,1762428032629,500.0,0.00038688,120]
[393295265,1762428032891,500.0,0.00038688,120]
[393295266,1762428033124,500.0,0.00038688,120]
[393295267,1762428033346,500.0,0.00038688,120]
[393295268,1762428033582,500.0,0.00038688,120]
[393295269,1762428033817,409.69551763,0.00038688,120]
[393295270,1762428034272,500.0,0.00038688,120]
[393295271,1762428034636,500.0,0.00038688,120]
[393295272,1762428034665,2000.0,0.000174,6]
[393295273,1762428034743,226.51419012,0.00038688,120]
[393295274,1762428034825,500.0,0.00038688,120]
[393295275,1762428035006,500.0,0.00038688,120]
[393295276,1762428035244,500.0,0.00038688,120]
[393295277,1762428035448,179.57648398,0.00038688,120]
[393295278,1762428035519,500.0,0.00038688,120]
[393295279,1762428035606,311.57102783,0.00038688,120]
[393295280,1762428035722,500.0,0.00038688,120]
[393295281,1762428035834,404.18314245,0.00038688,120]
[393295282,1762428035964,500.0,0.00038688,120]
[393295283,1762428036190,500.0,0.00038688,120]
[393295284,1762428036432,500.0,0.00038688,120]
[393295285,1762428036559,400.0,0.000175,6]
[393295286,1762428036664,500.0,0.00038688,120]
[393295287,1762428036897,500.0,0.00038688,120]
[393295288,1762428037028,500.0,0.00038688,120]
[393295289,1762428037124,500.0,0.00038688,120]
[393295290,1762428037287,500.0,0.00038688,120]
[393295291,1762428037360,500.0,0.00038688,120]
[393295292,1762428037436,500.0,0.00038688,120]
[393295293,1762428037521,500.0,0.00038688,120]
[393295294,1762428037593,500.0,0.00038688,120]
[393295295,1762428037664,267.62268247,0.00038688,120]
[393295296,1762428037762,500.0,0.00038688,120]
[393295297,1762428037852,500.0,0.00038688,120]
[393295298,1762428038020,500.0,0.00038688,120]
[393295299,1762428038093,500.0,0.00038688,120]
[393295300,1762428038253,500.0,0.00038688,120]
[393295301,1762428038328,500.0,0.00038688,120]
[393295302,1762428038403,468.31062336,0.00038688,120]
[393295303,1762428038496,553.23912155,0.00038688,120]
[393295304,1762428038570,501.7295281,0.00038688,120]
[393295305,1762428038652,400.0,0.000176,6]
[393295306,1762428039460,500.0,0.00038688,120]
[393295307,1762428039700,500.0,0.00038688,120]
[393295308,1762428039924,500.0,0.00038688,120]
[393295309,1762428040153,500.0,0.00038688,120]
[393295310,1762428040303,500.0,0.00038688,120]
[393295311,1762428040382,500.0,0.00038688,120]
[393295312,1762428040539,500.0,0.00038688,120]
[393295313,1762428040789,500.0,0.00038688,120]
[393295314,1762428040818,400.0,0.000177,6]
[393295315,1762428041021,164.57205417,0.00038688,120]
[393295316,1762428042836,400.0,0.000178,6]
[393295317,1762428044000,212.2782699,0.00038688,120]
[393295318,1762428044253,214.74360059,0.00038688,120]
[393295319,1762428044962,600.0,0.000179,6]
[393295320,1762428045812,500.0,0.00038688,120]
[393295321,1762428045884,647.93086893,0.00038688,120]
[393295322,1762428046054,500.0,0.00038688,120]
[393295323,1762428046148,500.0,0.00038688,120]
[393295324,1762428046309,500.0,0.00038688,120]
[393295325,1762428046399,500.0,0.00038688,120]
[393295326,1762428046584,500.0,0.00038688,120]
[393295327,1762428046661,500.0,0.00038688,120]
[393295328,1762428046810,500.0,0.00038688,120]
[393295329,1762428046878,500.0,0.00038688,120]
[393295330,1762428046947,243.45338236,0.00038688,120]
[393295331,1762428047042,550.08936326,0.00038688,120]
[393295332,1762428047113,500.0,0.00038688,120]
[393295333,1762428047360,500.0,0.00038688,120]
[393295334,1762428047458,447.55050141,0.00038688,120]
[393295335,1762428047568,500.0,0.00038688,120]
[393295336,1762428047715,363.65276028,0.00038688,120]
[393295337,1762428047800,500.0,0.00038688,120]
[393295338,1762428047867,341.15374822,0.00038688,120]
[393295339,1762428048033,500.0,0.00038688,120]
[393295340,1762428048270,500.0,0.00038688,120]
[393295341,1762428048504,500.0,0.00038688,120]
[393295342,1762428048662,163.83643019,0.00038688,120]
[393295343,1762428048740,500.0,0.00038688,120]
[393295344,1762428049208,500.0,0.00038688,120]
[393295345,1762428049440,500.0,0.00038688,120]
[393295346,1762428049609,565.34512377,0.00038688,120]
[393295347,1762428049682,500.0,0.00038688,120]
[393295348,1762428049898,500.0,0.00038688,120]
[393295349,1762428050134,506.76087332,0.00038688,120]
[393295350,1762428050519,500.0,0.00038688,120]
[393295351,1762428050747,500.0,0.00038688,120]
[393295352,1762428050982,500.0,0.00038688,120]
[393295353,1762428051557,500.0,0.00038688,120]
[393295354,1762428051705,500.0,0.00038688,120]
[393295355,1762428051821,326.63976748,0.00038688,120]
[393295356,1762428051891,500.0,0.00038688,120]
[393295357,1762428051963,500.0,0.00038688,120]
[393295358,1762428052149,500.0,0.00038688,120]
[393295359,1762428052224,591.54541587,0.00038688,120]
[393295360,1762428052300,315.71229441,0.00038688,120]
[393295361,1762428052382,500.0,0.00038688,120]
[393295362,1762428052622,500.0,0.00038688,120]
[393295363,1762428052874,498.98578445,0.00038688,120]
[393295364,1762428052945,534.494398,0.00038688,120]
[393295365,1762428053474,194.07830975,0.00038688,120]
[393295366,1762428053549,298.96108138,0.00038688,120]
[393295367,1762428054626,500.0,0.00038688,120]
[393295368,1762428054873,500.0,0.00038688,120]
[393295369,1762428055089,203.5519911,0.00038688,120]
[393295370,1762428055167,237.23659981,0.00038688,120]
[393295371,1762428055345,360.77887216,0.00038688,120]
[393295372,1762428055513,498.03227039,0.00038688,120]
[393295373,1762428055975,443.57379838,0.00038688,120]
[393295374,1762428056663,352.44414325,0.00038688,120]
[393295375,1762428056931,170.21917319,0.00038688,120]
[393295376,1762428057401,380.91440857,0.00038688,120]
[393295377,1762428058340,500.0,0.00038688,120]
[393295378,1762428058571,500.0,0.00038688,120]
[393295379,1762428058826,500.0,0.00038688,120]
[393295380,1762428058899,153.39439484,0.00038688,120]
[393295381,1762428058971,190.42306086,0.00038688,120]
[393295382,1762428059082,500.0,0.00038688,120]
[393295383,1762428059330,500.0,0.00038688,120]
[393295384,1762428059581,500.0,0.00038688,120]
[393295385,1762428059823,500.0,0.00038688,120]
[393295386,1762428060073,500.0,0.00038688,120]
[393295387,1762428060309,500.0,0.00038688,120]
[393295388,1762428060549,500.0,0.00038688,120]
[393295389,1762428060637,480.48859011,0.00038688,120]
[393295390,1762428060799,500.0,0.00038688,120]
[393295391,1762428061041,500.0,0.00038688,120]
[393295392,1762428061315,500.0,0.00038688,120]
[393295393,1762428061729,500.0,0.00038688,120]
[393295394,1762428061805,471.53786943,0.00038688,120]
[393295395,1762428061874,500.0,0.00038688,120]
[393295396,1762428062171,200.0,0.00038688,30]
[393295397,1762428062248,500.0,0.00038688,120]
[393295398,1762428062320,214.31932371,0.00038688,120]
[393295399,1762428062428,500.0,0.00038688,120]
[393295400,1762428062498,355.95971938,0.00038688,120]
[393295401,1762428062567,550.78020551,0.00038688,120]
[393295402,1762428062632,500.0,0.00038688,120]
[393295403,1762428062807,500.0,0.00038688,120]
[393295404,1762428062878,219.42351772,0.00038688,120]
[393295405,1762428063228,500.0,0.00038688,120]
[393295406,1762428063478,500.0,0.00038688,120]
[393295407,1762428063738,500.0,0.00038688,120]
[393295408,1762428063971,500.0,0.00038688,120]
[393295409,1762428064128,162.17366767,0.00038688,120]
[393295410,1762428064203,457.32385541,0.00038688,120]
[393295411,1762428065047,451.0,0.00038688,120]
[393295412,1762428065645,219.45986139,0.00038688,120]
[393295413,1762428065956,500.0,0.00038688,120]
[393295414,1762428066188,526.28140764,0.00038688,120]
[393295415,1762428066712,217.9036468,0.00038688,120]
[393295416,1762428067299,243.61641079,0.00038688,120]
[393295417,1762428067938,500.0,0.00038688,120]
[393295418,1762428068184,500.0,0.00038688,120]
[393295419,1762428068411,500.0,0.00038688,120]
[393295420,1762428068636,513.11478455,0.00038688,120]
[393295421,1762428068880,517.76398939,0.00038688,120]
[393295422,1762428069102,308.05093984,0.00038688,120]
[393295423,1762428069509,270.78238913,0.00038688,120]
[393295424,1762428070645,235.68371224,0.00038688,120]
[393295425,1762428070939,237.34935148,0.00038688,120]
[393295429,1762428072055,500.0,0.00038688,120]
[393295431,1762428072158,184.63580727,0.00038688,120]
[393295432,1762428072235,239.91510003,0.00038688,120]
[393295435,1762428075644,333.98740007,0.00038688,120]
[393295436,1762428075720,549.65361941,0.00038688,120]
[393295437,1762428076850,191.78505158,0.00038688,120]
[393295438,1762428077406,500.0,0.00038688,120]
[393295439,1762428077677,500.0,0.00038688,120]
[393295440,1762428080822,159.62356799,0.00038688,120]
[393295441,1762428080982,500.0,0.00038688,120]
[393295442,1762428081241,437.54306233,0.00038688,120]
[393295444,1762428083567,184.63367511,0.00038688,120]
[393295445,1762428083855,395.00318145,0.00038688,120]
[393295446,1762428084195,204.28467097,0.00038688,120]
[393295447,1762428085566,233.19824341,0.00038688,120]
[393295448,1762428086248,500.0,0.00038688,120]
[393295449,1762428086484,240.80494697,0.00038688,120]
[393295450,1762428086556,500.0,0.00038688,120]
[393295451,1762428086738,500.0,0.00038688,120]
[393295452,1762428086989,505.8293479,0.00038688,120]
[393295453,1762428087464,193.90865553,0.00038688,120]
[393295454,1762428088719,500.0,0.00038688,120]
[393295455,1762428088970,399.1586188,0.00038688,120]
[393295456,1762428089045,345.71450836,0.00038688,120]
[393295457,1762428089245,204.30633345,0.00038688,120]
[393295458,1762428089381,247.4194598,0.00038688,120]
[393295459,1762428089813,270.93626997,0.00038688,120]
[393295460,1762428090255,159.06529252,0.00038688,120]
[393295461,1762428091092,500.85571067,0.00038688,120]
[393295462,1762428091320,271.67579717,0.00038688,120]
[393295463,1762428092156,458.25642459,0.00038688,30]
[393295465,1762428092814,471.19868744,0.00038688,120]
[393295466,1762428093215,310.87296411,0.00027397,120]
[393295467,1762428094792,194.72990374,0.00038688,120]
[393295468,1762428096232,178.84285647,0.00038688,120]
[393295469,1762428096459,336.25944573,0.00038688,120]
[393295470,1762428096794,345.08689739,0.00038688,120]
[393295471,1762428096871,493.15035415,0.00038688,30]
[393295472,1762428098253,354.30817934,0.00038688,120]
[393295473,1762428100514,279.44694361,0.00038688,120]
[393295474,1762428101068,160.84296618,0.00038688,120]
[393295475,1762428103074,220.96781866,0.00038688,120]
[393295476,1762428105263,483.54730183,0.00038688,120]
[393295477,1762428109897,226.93501026,0.00038688,120]
[393295478,1762428112862,252.06263421,0.00038688,120]
[393295479,1762428116452,187.0128382,0.00038688,120]
[393295480,1762428116884,282.7461946,0.00038688,120]
[393295481,1762428121622,262.76800997,0.00038688,120]
[393295482,1762428125041,250.0,0.00038688,120]
[393295483,1762428125128,500.0,0.00038688,120]
[393295484,1762428125203,151.0,0.00038688,120]
[393295485,1762428125277,910.01165925,0.00038688,30]
[393295486,1762428125635,250.0,0.00038688,120]
[393295487,1762428125725,156.587,0.00038688,120]
[393295488,1762428125800,500.0,0.00038688,120]
[393295489,1762428126176,177.46080996,0.00038688,120]
[393295490,1762428126248,250.0,0.00038688,120]
[393295491,1762428126320,162.380719,0.00038688,120]
[393295492,1762428126392,500.0,0.00038688,120]
[393295493,1762428126939,162.380719,0.00038688,120]
[393295494,1762428127015,500.0,0.00038688,120]
[393295495,1762428127087,250.0,0.00038688,120]
[393295496,1762428127373,397.0533572,0.00038688,120]
[393295497,1762428127603,500.0,0.00038688,120]
[393295498,1762428127675,250.0,0.00038688,120]
[393295499,1762428128165,151.0,0.00038688,120]
[393295500,1762428128240,250.0,0.00038688,120]
[393295501,1762428128786,151.0,0.00038688,120]
[393295502,1762428128864,200.0,0.00038688,120]
[393295503,1762428128940,250.0,0.00038688,120]
[393295504,1762428129454,200.0,0.00038688,120]
[393295505,1762428129529,250.0,0.00038688,120]
[393295506,1762428129601,151.0,0.00038688,120]
[393295507,1762428130062,200.0,0.00038688,120]
[393295508,1762428130139,250.0,0.00038688,120]
[393295509,1762428130224,151.0,0.00038688,120]
[393295510,1762428130721,151.0,0.00038688,120]
[393295511,1762428131058,250.0,0.00038688,120]
[393295512,1762428131232,199.02673536,0.00038688,120]
[393295513,1762428131367,250.0,0.00038688,120]
[393295514,1762428131839,151.0,0.00038688,120]
[393295515,1762428132015,250.0,0.00038688,120]
[393295516,1762428132462,151.0,0.00038688,120]
[393295517,1762428132553,300.0,0.00038688,120]
[393295518,1762428132696,250.0,0.00038688,120]
[393295519,1762428133123,151.0,0.00038688,120]
[393295520,1762428133199,311.1,0.00038688,120]
[393295521,1762428133270,171.40939661,0.00038688,120]
[393295522,1762428133341,229.98706469,0.00038688,120]
[393295523,1762428133419,250.0,0.00038688,120]
[393295524,1762428133497,250.0,0.00038688,120]
[393295525,1762428133911,151.0,0.00038688,120]
[393295526,1762428133988,322.6107,0.00038688,120]
[393295527,1762428134065,250.0,0.00038688,120]
[393295528,1762428134192,250.0,0.00038688,120]
[393295529,1762428134313,151.0,0.00038688,120]
[393295530,1762428134395,334.5472959,0.00038688,120]
[393295531,1762428134477,429.05443384,0.00038688,120]
[393295532,1762428134558,250.0,0.00038688,120]
[393295533,1762428134680,250.0,0.00038688,120]
[393295534,1762428135012,346.92554585,0.00038688,120]
[393295535,1762428135088,151.0,0.00038688,120]
[393295536,1762428135234,250.0,0.00038688,120]
[393295537,1762428135310,250.0,0.00038688,120]
[393295538,1762428135629,359.76179104,0.00038688,120]
[393295539,1762428135706,151.0,0.00038688,120]
[393295540,1762428135844,250.0,0.00038688,120]
[393295541,1762428135916,250.0,0.00038688,120]
[393295542,1762428136226,373.07297731,0.00038688,120]
[393295543,1762428136299,200.0,0.00038688,120]
[393295544,1762428136374,151.0,0.00038688,120]
[393295545,1762428136447,293.18876885,0.00038688,30]
[393295546,1762428136526,250.0,0.00038688,120]
[393295547,1762428136598,250.0,0.00038688,120]
[393295548,1762428136668,463.12699356,0.00038688,120]
[393295549,1762428136822,386.87667747,0.00038688,120]
[393295550,1762428136943,200.0,0.00038688,120]
[393295551,1762428137018,151.0,0.00038688,120]
[393295552,1762428137101,250.0,0.00038688,120]
[393295553,1762428137275,331.95652821,0.00038688,120]
[393295554,1762428137558,200.0,0.00038688,120]
[393295555,1762428137629,250.0,0.00038688,120]
[393295556,1762428137701,250.0,0.00038688,120]
[393295557,1762428137960,386.87667747,0.00038688,120]
[393295558,1762428138060,151.0,0.00038688,120]
[393295559,1762428138168,200.0,0.00038688,120]
[393295560,1762428138241,250.0,0.00038688,120]
[393295561,1762428138432,250.0,0.00038688,120]
[393295562,1762428138653,151.0,0.00038688,120]
[393295563,1762428138780,250.0,0.00038688,120]
[393295564,1762428138865,200.0,0.00038688,120]
[393295565,1762428139001,298.58521912,0.00038688,120]
[393295566,1762428139073,250.0,0.00038688,120]
[393295567,1762428139249,151.0,0.00038688,120]
[393295568,1762428139429,250.0,0.00038688,120]
[393295569,1762428139544,231.81019437,0.00038688,120]
[393295570,1762428139651,250.0,0.00038688,120]
[393295571,1762428139864,151.0,0.00038688,120]
[393295572,1762428139948,200.0,0.00038688,120]
[393295573,1762428140027,250.0,0.00038688,120]
[393295574,1762428140099,213.62721573,0.00038688,120]
[393295575,1762428140254,250.0,0.00038688,120]
[393295576,1762428140455,151.0,0.00038688,120]
[393295577,1762428140558,207.4,0.00038688,120]
[393295578,1762428140841,250.0,0.00038688,120]
[393295579,1762428141072,151.0,0.00038688,120]
[393295580,1762428141265,250.0,0.00038688,120]
[393295581,1762428141581,414.0,0.00038688,120]
[393295582,1762428141715,215.0738,0.00038688,120]
[393295583,1762428141894,250.0,0.00038688,120]
[393295584,1762428142258,429.318,0.00038688,120]
[393295585,1762428142344,223.0315306,0.00038688,120]
[393295586,1762428142590,250.0,0.00038688,120]
[393295587,1762428142713,220.87601602,0.00038688,120]
[393295588,1762428142857,445.202766,0.00038688,120]
[393295589,1762428143203,250.0,0.00038688,120]
[393295590,1762428143497,461.67526834,0.00038688,120]
[393295591,1762428143817,250.0,0.00038688,120]
[393295592,1762428144157,151.0,0.00038688,120]
[393295593,1762428144238,478.75725327,0.00038688,120]
[393295594,1762428144323,151.0,0.00038688,120]
[393295595,1762428144396,186.65447613,0.00038688,120]
[393295596,1762428144496,250.0,0.00038688,120]
[393295597,1762428144726,151.0,0.00038688,120]
[393295598,1762428144818,496.47127164,0.00038688,120]
[393295599,1762428144926,151.0,0.00038688,120]
[393295600,1762428145308,250.0,0.00038688,120]
[393295601,1762428145549,151.0,0.00038688,120]
[393295602,1762428145982,250.0,0.00038688,120]
[393295603,1762428146153,151.0,0.00038688,120]
[393295604,1762428146750,151.0,0.00038688,120]
[393295605,1762428147370,151.0,0.00038688,120]
[393295606,1762428147972,151.0,0.00038688,120]
[393295607,1762428148155,151.0,0.00038688,120]
[393295608,1762428148235,200.0,0.00038688,30]
[393295609,1762428148515,379.58226899,0.00038688,120]
[393295610,1762428148626,151.0,0.00038688,120]
[393295611,1762428148834,151.0,0.00038688,120]
[393295612,1762428148945,207.4,0.00038688,30]
[393295613,1762428149264,151.0,0.00038688,120]
[393295614,1762428149528,250.0,0.00038688,120]
[393295615,1762428149600,215.0738,0.00038688,30]
[393295616,1762428149870,151.0,0.00038688,120]
[393295617,1762428149958,151.0,0.00038688,120]
[393295618,1762428150153,250.0,0.00038688,120]
[393295619,1762428150260,223.0315306,0.00038688,30]
[393295620,1762428150334,202.76318593,0.00038688,120]
[393295621,1762428150511,151.0,0.00038688,120]
[393295622,1762428150642,151.0,0.00038688,120]
[393295623,1762428150772,250.0,0.00038688,120]
[393295624,1762428150859,231.28369723,0.00038688,30]
[393295625,1762428151208,151.0,0.00038688,120]
[393295626,1762428151286,184.94725808,0.00038688,120]
[393295627,1762428151361,151.0,0.00038688,120]
[393295628,1762428151473,250.0,0.00038688,120]
[393295629,1762428151550,239.84119403,0.00038688,30]
[393295630,1762428151806,151.0,0.00038688,120]
[393295631,1762428151890,151.0,0.00038688,120]
[393295632,1762428152066,250.0,0.00038688,120]
[393295633,1762428152146,248.71531821,0.00038688,30]
[393295634,1762428152218,195.20949062,0.00038688,120]
[393295635,1762428152419,151.0,0.00038688,120]
[393295636,1762428152678,250.0,0.00038688,120]
[393295637,1762428153039,151.0,0.00038688,120]
[393295638,1762428153131,151.0,0.00038688,120]
[393295639,1762428153222,257.91778498,0.00038688,30]
[393295640,1762428153305,250.0,0.00038688,120]
[393295641,1762428153652,151.0,0.00038688,120]
[393295642,1762428153734,151.0,0.00038688,120]
[393295643,1762428153807,267.46074303,0.00038688,30]
[393295644,1762428153891,250.0,0.00038688,120]
[393295645,1762428154031,500.0,0.00038688,120]
[393295646,1762428154402,277.35679052,0.00038702,30]
[393295647,1762428154476,151.0,0.00038702,120]
[393295648,1762428154560,250.0,0.00038702,120]
[393295649,1762428154706,500.0,0.00038702,120]
[393295650,1762428154952,287.61899177,0.00038702,30]
[393295651,1762428155036,151.0,0.00038702,120]
[393295652,1762428155120,250.0,0.00038702,120]
[393295653,1762428155358,500.0,0.00038702,120]
[393295654,1762428155562,298.26089446,0.00038702,30]
[393295655,1762428155702,250.0,0.00038702,120]
[393295656,1762428155945,500.0,0.00038702,120]
[393295657,1762428156172,309.29654756,0.00038702,30]
[393295658,1762428156333,250.0,0.00038702,120]
[393295659,1762428156794,500.0,0.00038702,120]
[393295660,1762428156876,320.74051982,0.00038702,30]
[393295661,1762428156946,151.0,0.00038702,120]
[393295662,1762428157025,169.6112968,0.00038702,120]
[393295663,1762428157096,250.0,0.00038702,120]
[393295664,1762428157178,500.0,0.00038702,120]
[393295665,1762428157411,332.60791905,0.00038702,30]
[393295666,1762428157489,151.0,0.00038702,120]
[393295667,1762428157566,250.0,0.00038702,120]
[393295668,1762428157800,500.0,0.00038702,120]
[393295669,1762428158014,344.91441206,0.00038702,30]
[393295670,1762428158089,151.0,0.00038702,120]
[393295671,1762428158442,500.0,0.00038702,120]
[393295672,1762428158609,357.6762453,0.00038702,30]
[393295673,1762428159072,500.0,0.00038702,120]
[393295674,1762428159347,357.6762453,0.00038702,30]
[393295675,1762428159540,224.3088315,0.00038702,120]
[393295676,1762428159698,500.0,0.00038702,120]
[393295677,1762428160069,151.0,0.00038702,120]
[393295678,1762428160283,500.0,0.00038702,120]
[393295679,1762428160676,151.0,0.00038702,120]
[393295680,1762428160749,250.0,0.00038702,120]
[393295681,1762428160886,500.0,0.00038702,120]
[393295682,1762428161316,151.0,0.00038702,120]
[393295683,1762428161395,433.19947762,0.00038702,120]
[393295684,1762428161466,250.0,0.00038702,120]
[393295685,1762428161551,500.0,0.00038702,120]
[393295686,1762428161930,151.0,0.00038702,120]
[393295687,1762428162005,250.0,0.00038702,120]
[393295688,1762428162142,500.0,0.00038702,120]
[393295689,1762428162529,151.0,0.00038702,120]
[393295690,1762428162650,250.0,0.00038702,120]
[393295691,1762428162841,500.0,0.00038702,120]
[393295692,1762428163127,151.0,0.00038702,120]
[393295693,1762428163266,250.0,0.00038702,120]
[393295694,1762428163454,500.0,0.00038702,120]
[393295695,1762428163744,151.0,0.00038702,120]
[393295696,1762428163909,250.0,0.00038702,120]
[393295697,1762428164199,500.0,0.00038702,120]
[393295698,1762428164359,151.0,0.00038702,120]
[393295699,1762428164665,190.87756953,0.00038702,120]
[393295700,1762428164749,250.0,0.00038702,120]
[393295701,1762428164850,500.0,0.00038702,120]
[393295702,1762428165089,151.0,0.00038702,120]
[393295703,1762428165170,250.0,0.00038702,120]
[393295704,1762428165498,500.0,0.00038702,120]
[393295705,1762428165708,151.0,0.00038702,120]
[393295706,1762428165784,299.78966566,0.00038702,120]
[393295707,1762428165912,150.0,0.00038702,30]
[393295708,1762428165993,250.0,0.00038702,120]
[393295709,1762428166208,245.87046599,0.00038702,120]
[393295710,1762428166338,500.0,0.00038702,120]
[393295711,1762428166415,151.0,0.00038702,120]
[393295712,1762428166571,250.0,0.00038702,120]
[393295713,1762428166642,215.5,0.00038702,30]
[393295714,1762428167098,151.0,0.00038702,120]
[393295715,1762428167183,250.0,0.00038702,120]
[393295716,1762428167269,215.5,0.00038702,30]
[393295717,1762428167756,151.0,0.00038702,120]
[393295718,1762428167835,250.0,0.00038702,120]
[393295719,1762428168414,151.0,0.00038702,120]
[393295720,1762428168821,250.0,0.00038702,120]
[393295721,1762428169005,337.84166161,0.00038702,120]
[393295722,1762428169079,151.0,0.00038702,120]